[Event "EIWCC 2017"]
[Site "Riga"]
[Date "2017.04.14"]
[Round "4"]
[White "Stetsko, Lanita"]
[Black "Heinatz, Maria"]
[Result "0-1"]
[ECO "B90"]
[WhiteElo "2226"]
[BlackElo "1990"]
[Annotator "NA"]
[PlyCount "166"]
[EventDate "2017.??.??"]
[EventType "swiss"]
[EventCountry "LAT"]
[SourceTitle "playchess.com"]
[Source "ChessBase"]
[SourceQuality "1"]
[TimeControl "40/5400+30:1800+30"]

1. e4 {[%emt 0:00:00]} c5 {[%emt 0:00:07]} 2. Nf3 {[%emt 0:00:00]} d6 {[%emt 0:00:05]} 3. d4 {[%emt 0:00:09]} cxd4 {[%emt 0:00:08]} 4. Nxd4 {[%emt 0:00:06]} Nf6 {[%emt 0:00:07]} 5. Nc3 {[%emt 0:00:23]} a6 {[%emt 0:00:18]} 6. h3 {[%emt 0:01:12]} e5 {[%emt 0:01:25]} 7. Nde2 {[%emt 0:02:23]} Be7 {[%emt 0:01:41]} 8. g4 {[%emt 0:02:02]} Be6 {[%emt 0:03:22]} 9. Bg2 {[%emt 0:00:53]} Nc6 {[%emt 0:02:59]} 10. Nd5 {[%emt 0:05:38]} Bxd5 {[%emt 0:06:08]} 11. exd5 {[%emt 0:00:23]} Nb8 {[%emt 0:00:13]} 12. Ng3 {[%emt 0:03:22]} g6 {[%emt 0:14:35]} 13. Be3 {[%emt 0:15:39]} Nbd7 {[%emt 0:05:47]} 14. g5 {[%emt 0:03:54]} Ng8 {[%emt 0:00:12]} 15. Ne4 {[%emt 0:00:50]} Rc8 {[%emt 0:11:42]} 16. O-O {[%emt 0:04:35]} h6 {[%emt 0:08:23]} 17. f4 {[%emt 0:01:14]} f5 {[%emt 0:03:39]} 18. gxf6 {[%emt 0:03:34]} Ngxf6 {[%emt 0:01:29]} 19. Qd3 {[%emt 0:00:56]} Kf7 {[%emt 0:02:47]} 20. c4 {[%emt 0:10:39]} Kg7 {[%emt 0:05:33]} 21. b4 {[%emt 0:03:03]} exf4 {[%emt 0:02:12]} 22. Bxf4 {[%emt 0:06:24]} Qb6+ {[%emt 0:01:02]} 23. Kh2 {[%emt 0:06:35]} Qxb4 {[%emt 0:01:28]} 24. Rab1 {[%emt 0:00:38]} Qxc4 {[%emt 0:00:38]} 25. Qxc4 {[%emt 0:00:11]} Rxc4 {[%emt 0:00:01]} 26. Rxb7 {[%emt 0:00:08]} Rb8 {[%emt 0:06:38]} 27. Rxb8 {[%emt 0:00:54]} Nxb8 {[%emt 0:00:01]} 28. Bxh6+ {[%emt 0:01:23]} Kxh6 {[%emt 0:00:43]} 29. Nxf6 {[%emt 0:00:02]} Kg7 {[%emt 0:02:55]} 30. Ng4 {[%emt 0:01:53]} Nd7 {[%emt 0:00:45]} 31. Re1 {[%emt 0:01:08]} Ne5 {[%emt 0:06:06]} 32. Nxe5 {[%emt 0:00:34]} dxe5 {[%emt 0:00:01]} 33. Rb1 {[%emt 0:00:10]} Rb4 {[%emt 0:00:38]} 34. Rc1 {[%emt 0:00:07]} Rb6 {[%emt 0:00:17]} 35. Rc7 {[%emt 0:03:19]} Kf6 {[%emt 0:00:07]} 36. Be4 {[%emt 0:00:31]} Bd6 {[%emt 0:01:40]} 37. Rd7 {[%emt 0:00:13]} Bf8 {[%emt 0:01:18]} 38. Kg3 {[%emt 0:01:05]} Rb2 {[%emt 0:01:05]} 39. Rc7 {[%emt 0:01:02]} Rb6 {[%emt 0:03:23]} 40. Rc8 {[%emt 0:00:00]} Be7 {[%emt 0:01:20]} 41. Ra8 {[%emt 0:06:23]} Rd6 {[%emt 0:02:21]} 42. Kf3 {[%emt 0:04:55]} Bd8 {[%emt 0:00:31]} 43. Bd3 {[%emt 0:00:33]} Rxd5 {[%emt 0:03:37]} 44. Rxa6+ {[%emt 0:00:32]} Ke7 {[%emt 0:00:27]} 45. Bxg6 {[%emt 0:04:15]} Ra5 {[%emt 0:01:40]} 46. Rc6 {[%emt 0:04:29]} Rxa2 {[%emt 0:00:30]} 47. Be4 {[%emt 0:00:20]} Ra3+ {[%emt 0:01:23]} 48. Kg4 {[%emt 0:00:10]} Kf7 {[%emt 0:01:10]} 49. Rh6 {[%emt 0:02:56]} Bf6 {[%emt 0:07:38]} 50. Kf5 {[%emt 0:01:37]} Bg7 {[%emt 0:00:38]} 51. Bd5+ {[%emt 0:00:45]} Kf8 {[%emt 0:00:46]} 52. Rh4 {[%emt 0:02:30]} Ra6 {[%emt 0:01:41]} 53. Rb4 {[%emt 0:01:11]} Rf6+ {[%emt 0:01:05]} 54. Kg5 {[%emt 0:00:18]} Rd6 {[%emt 0:01:44]} 55. Be4 {[%emt 0:01:14]} Bh6+ {[%emt 0:02:28]} 56. Kf5 {[%emt 0:00:34]} Bf4 {[%emt 0:00:32]} 57. Rb8+ {[%emt 0:00:55]} Kg7 {[%emt 0:00:16]} 58. Rb7+ {[%emt 0:00:07]} Kf8 {[%emt 0:00:15]} 59. h4 {[%emt 0:00:49]} Rh6 {[%emt 0:00:56]} 60. Kg4 {[%emt 0:00:09]} Rd6 {[%emt 0:00:37]} 61. h5 {[%emt 0:00:24]} Kg8 {[%emt 0:01:42]} 62. Bg6 {[%emt 0:02:56]} Rf6 {[%emt 0:00:46]} 63. Kf3 {[%emt 0:02:02]} Kf8 {[%emt 0:01:58]} 64. Ke4 {[%emt 0:00:59]} Kg8 {[%emt 0:00:03]} 65. Rb8+ {[%emt 0:01:06]} Kg7 {[%emt 0:00:20]} 66. Ra8 {[%emt 0:00:18]} Bg3 {[%emt 0:01:49]} 67. Ra7+ {[%emt 0:01:17]} Kg8 {[%emt 0:00:32]} 68. Ra2 {[%emt 0:02:52]} Bf4 {[%emt 0:00:17]} 69. Rg2 {[%emt 0:00:08]} Kf8 {[%emt 0:01:31]} 70. Bh7 {[%emt 0:00:27]} Kf7 {[%emt 0:00:49]} 71. Kd5 {[%emt 0:04:14]} Kf8 {[%emt 0:00:44]} 72. Rg8+ {[%emt 0:00:24]} Kf7 {[%emt 0:00:11]} 73. Rg2 {[%emt 0:02:03]} Kf8 {[%emt 0:00:04]} 74. Bg8 {[%emt 0:00:12]} Ke7 {[%emt 0:02:50]} 75. Bh7 {[%emt 0:01:55]} Rd6+ {[%emt 0:00:28]} 76. Ke4 {[%emt 0:00:10]} Rf6 {[%emt 0:00:01]} 77. Rb2 {[%emt 0:00:27]} Kf8 {[%emt 0:00:14]} 78. Bf5 {[%emt 0:02:04]} Kf7 {[%emt 0:00:41]} 79. Rb7+ {[%emt 0:00:58]} Kg8 {[%emt 0:00:18]} 80. Bg4 {[%emt 0:00:19]} Kf8 {[%emt 0:00:19]} 81. Kd5 {[%emt 0:00:40]} Bg3 {[%emt 0:01:22]} 82. Be6 {[%emt 0:01:04]} e4 {[%emt 0:00:59]} 83. Rb8+ {[%emt 0:03:52]} Bxb8 {[%emt 0:00:17]} 0-1

[Event "EIWCC 2017"]
[Site "Riga"]
[Date "2017.04.14"]
[Round "4"]
[White "Lickrastina, Agnese"]
[Black "Limanovska, Elizabete"]
[Result "1/2-1/2"]
[ECO "B94"]
[WhiteElo "2223"]
[BlackElo "1990"]
[Annotator "NA"]
[PlyCount "84"]
[EventDate "2017.??.??"]
[EventType "swiss"]
[EventCountry "LAT"]
[SourceTitle "playchess.com"]
[Source "ChessBase"]
[SourceQuality "1"]
[TimeControl "40/5400+30:1800+30"]

1. e4 {[%emt 0:00:00]} c5 {[%emt 0:00:03]} 2. Nf3 {[%emt 0:00:00]} d6 {[%emt 0:00:04]} 3. d4 {[%emt 0:00:03]} cxd4 {[%emt 0:00:03]} 4. Nxd4 {[%emt 0:00:06]} Nf6 {[%emt 0:00:06]} 5. Nc3 {[%emt 0:00:11]} a6 {[%emt 0:00:04]} 6. Bg5 {[%emt 0:03:47]} Nbd7 {[%emt 0:00:35]} 7. f4 {[%emt 0:02:23]} Qc7 {[%emt 0:02:11]} 8. Qf3 {[%emt 0:08:10]} b5 {[%emt 0:07:35]} 9. O-O-O {[%emt 0:09:11]} Bb7 {[%emt 0:02:50]} 10. Bxf6 {[%emt 0:03:07]} Nxf6 {[%emt 0:06:41]} 11. a3 {[%emt 0:06:59]} Rc8 {[%emt 0:08:42]} 12. Bd3 {[%emt 0:02:29]} g6 {[%emt 0:05:50]} 13. Qe2 {[%emt 0:16:13]} Bh6 {[%emt 0:08:13]} 14. Rhf1 {[%emt 0:09:51]} O-O {[%emt 0:02:42]} 15. Kb1 {[%emt 0:00:54]} Bg7 {[%emt 0:04:42]} 16. Nb3 {[%emt 0:04:21]} e6 {[%emt 0:13:09]} 17. Na2 {[%emt 0:07:06]} Rfe8 {[%emt 0:04:18]} 18. g4 {[%emt 0:01:40]} Nd7 {[%emt 0:00:41]} 19. h4 {[%emt 0:01:58]} Nb6 {[%emt 0:07:56]} 20. f5 {[%emt 0:06:08]} exf5 {[%emt 0:00:34]} 21. gxf5 {[%emt 0:00:05]} d5 {[%emt 0:03:47]} 22. fxg6 {[%emt 0:01:37]} fxg6 {[%emt 0:00:46]} 23. c3 {[%emt 0:03:45]} dxe4 {[%emt 0:02:10]} 24. Bc2 {[%emt 0:00:05]} Bd5 {[%emt 0:01:44]} 25. Qe3 {[%emt 0:02:06]} Nc4 {[%emt 0:02:10]} 26. Qc1 {[%emt 0:01:46]} Bf7 {[%emt 0:01:45]} 27. Rde1 {[%emt 0:01:12]} e3 {[%emt 0:01:58]} 28. h5 {[%emt 0:01:06]} Red8 {[%emt 0:02:12]} 29. Re2 {[%emt 0:00:32]} Nd2+ {[%emt 0:01:39]} 30. Nxd2 {[%emt 0:00:23]} exd2 {[%emt 0:00:04]} 31. Rxd2 {[%emt 0:00:18]} Rxd2 {[%emt 0:00:19]} 32. Qxd2 {[%emt 0:00:09]} Qc4 {[%emt 0:00:44]} 33. Rxf7 {[%emt 0:01:15]} Qxf7 {[%emt 0:00:09]} 34. hxg6 {[%emt 0:00:26]} Qf1+ {[%emt 0:02:30]} 35. Nc1 {[%emt 0:00:38]} h6 {[%emt 0:01:53]} 36. Ka2 {[%emt 0:02:27]} Kh8 {[%emt 0:00:54]} 37. Ne2 {[%emt 0:01:10]} Qf6 {[%emt 0:01:43]} 38. Nd4 {[%emt 0:02:07]} Re8 {[%emt 0:02:15]} 39. Qg2 {[%emt 0:01:16]} Qb6 {[%emt 0:02:42]} 40. Nf5 {[%emt 0:00:00]} Qe6+ {[%emt 0:00:12]} 41. Kb1 {[%emt 0:03:27]} Qe1+ {[%emt 0:01:58]} 42. Ka2 {[%emt 0:00:07]} Qe6+ 1/2-1/2

[Event "EIWCC 2017"]
[Site "Riga"]
[Date "2017.04.14"]
[Round "4"]
[White "Zherebtsova, Alexandra"]
[Black "Yildiz, Betul Cemre"]
[Result "1-0"]
[ECO "E12"]
[WhiteElo "2222"]
[BlackElo "2367"]
[Annotator "NA"]
[PlyCount "65"]
[EventDate "2017.??.??"]
[EventType "swiss"]
[EventCountry "LAT"]
[SourceTitle "playchess.com"]
[Source "ChessBase"]
[SourceQuality "1"]
[TimeControl "40/5400+30:1800+30"]

1. d4 {[%emt 0:00:00]} Nf6 {[%emt 0:00:05]} 2. Nf3 {[%emt 0:00:00]} e6 {[%emt 0:00:04]} 3. c4 {[%emt 0:00:00]} b6 {[%emt 0:00:03]} 4. a3 {[%emt 0:00:00]} Bb7 {[%emt 0:00:07]} 5. Nc3 {[%emt 0:00:00]} d5 {[%emt 0:00:34]} 6. cxd5 {[%emt 0:00:00]} Nxd5 {[%emt 0:00:06]} 7. Qc2 {[%emt 0:00:10]} Nd7 {[%emt 0:00:27]} 8. e4 {[%emt 0:12:16]} Nxc3 {[%emt 0:00:12]} 9. bxc3 {[%emt 0:00:04]} c5 {[%emt 0:00:05]} 10. Bd3 {[%emt 0:06:03]} cxd4 {[%emt 0:00:22]} 11. cxd4 {[%emt 0:00:07]} Rc8 {[%emt 0:00:08]} 12. Qe2 {[%emt 0:03:43]} Be7 {[%emt 0:04:08]} 13. O-O {[%emt 0:00:56]} O-O {[%emt 0:01:49]} 14. Bb2 {[%emt 0:03:14]} Nf6 {[%emt 0:10:40]} 15. Ne5 {[%emt 0:03:59]} Qc7 {[%emt 0:02:40]} 16. f4 {[%emt 0:13:29]} a6 {[%emt 0:19:00]} 17. Rf3 {[%emt 0:07:08]} b5 {[%emt 0:00:59]} 18. Rg3 {[%emt 0:14:36]} Rfd8 {[%emt 0:05:47]} 19. Rf1 {[%emt 0:08:21]} Qb6 {[%emt 0:10:32]} 20. Kh1 {[%emt 0:02:05]} b4 {[%emt 0:04:10]} 21. a4 {[%emt 0:06:11]} Qa5 {[%emt 0:16:24]} 22. f5 {[%emt 0:03:12]} exf5 {[%emt 0:08:15]} 23. Rxf5 {[%emt 0:00:59]} Qxa4 {[%emt 0:00:04]} 24. Bc4 {[%emt 0:05:14]} Bxe4 {[%emt 0:09:46]} 25. Bxf7+ {[%emt 0:02:39]} Kf8 {[%emt 0:00:04]} 26. Bb3 {[%emt 0:02:22]} Qxb3 {[%emt 0:00:26]} 27. Rxf6+ {[%emt 0:00:54]} gxf6 {[%emt 0:02:09]} 28. Rxb3 {[%emt 0:00:14]} Bd5 {[%emt 0:00:23]} 29. Rh3 {[%emt 0:04:50]} fxe5 {[%emt 0:00:52]} 30. Rxh7 {[%emt 0:00:18]} e4 {[%emt 0:02:54]} 31. Qh5 {[%emt 0:01:06]} Rc6 {[%emt 0:00:42]} 32. Rh8+ {[%emt 0:00:41]} Bg8 {[%emt 0:00:14]} 33. Qh7 {[%emt 0:00:27]} 1-0

[Event "EIWCC 2017"]
[Site "Riga"]
[Date "2017.04.14"]
[Round "4"]
[White "Movileanu, Daniela"]
[Black "Parhomenko, Margarita"]
[Result "1-0"]
[ECO "B16"]
[WhiteElo "2213"]
[BlackElo "1987"]
[Annotator "NA"]
[PlyCount "73"]
[EventDate "2017.??.??"]
[EventType "swiss"]
[EventCountry "LAT"]
[SourceTitle "playchess.com"]
[Source "ChessBase"]
[SourceQuality "1"]
[TimeControl "40/5400+30:1800+30"]

1. e4 {[%emt 0:00:00]} c6 {[%emt 0:00:04]} 2. d4 {[%emt 0:00:00]} d5 {[%emt 0:00:04]} 3. Nd2 {[%emt 0:00:00]} dxe4 {[%emt 0:00:09]} 4. Nxe4 {[%emt 0:00:02]} Nf6 {[%emt 0:00:23]} 5. Nxf6+ {[%emt 0:00:41]} gxf6 {[%emt 0:00:14]} 6. c3 {[%emt 0:01:01]} Bf5 {[%emt 0:01:12]} 7. Nf3 {[%emt 0:01:56]} Rg8 {[%emt 0:08:21]} 8. g3 {[%emt 0:04:12]} Nd7 {[%emt 0:03:15]} 9. Bg2 {[%emt 0:00:52]} e6 {[%emt 0:00:28]} 10. Bf4 {[%emt 0:04:33]} Nb6 {[%emt 0:01:29]} 11. O-O {[%emt 0:01:52]} Bd6 {[%emt 0:02:26]} 12. Bxd6 {[%emt 0:06:10]} Qxd6 {[%emt 0:00:07]} 13. Nh4 {[%emt 0:05:06]} Bg4 {[%emt 0:06:18]} 14. Qc2 {[%emt 0:03:15]} O-O-O {[%emt 0:04:58]} 15. b4 {[%emt 0:07:03]} Nd5 {[%emt 0:22:56]} 16. Kh1 {[%emt 0:03:58]} Bh5 {[%emt 0:06:12]} 17. Qd2 {[%emt 0:11:37]} Rg4 {[%emt 0:04:25]} 18. f3 {[%emt 0:12:13]} Rg7 {[%emt 0:05:03]} 19. Qh6 {[%emt 0:05:01]} Rxg3 {[%emt 0:01:14]} 20. hxg3 {[%emt 0:02:39]} Qxg3 {[%emt 0:02:17]} 21. Nf5 {[%emt 0:10:01]} exf5 {[%emt 0:03:42]} 22. Qxh5 {[%emt 0:00:07]} Nxc3 {[%emt 0:04:15]} 23. Qxf5+ {[%emt 0:04:04]} Kb8 {[%emt 0:00:19]} 24. Qg4 {[%emt 0:05:03]} Qd6 {[%emt 0:03:01]} 25. Rfe1 {[%emt 0:01:11]} Qxb4 {[%emt 0:02:10]} 26. Qf4+ {[%emt 0:01:01]} Ka8 {[%emt 0:07:22]} 27. Qxf6 {[%emt 0:00:24]} Qa5 {[%emt 0:00:52]} 28. Re5 {[%emt 0:01:07]} Nd5 {[%emt 0:01:30]} 29. Qxf7 {[%emt 0:01:04]} Qd2 {[%emt 0:01:54]} 30. Re8 {[%emt 0:02:25]} Qg5 {[%emt 0:03:03]} 31. Bh3 {[%emt 0:01:59]} a6 {[%emt 0:04:35]} 32. Rb1 {[%emt 0:00:47]} Nb6 {[%emt 0:00:20]} 33. Rxb6 {[%emt 0:02:35]} Qc1+ {[%emt 0:01:41]} 34. Kg2 {[%emt 0:01:28]} Qg5+ {[%emt 0:00:31]} 35. Bg4 {[%emt 0:00:33]} Qd2+ {[%emt 0:00:27]} 36. Kh3 {[%emt 0:00:08]} Qh6+ {[%emt 0:00:27]} 37. Bh5 1-0

[Event "EIWCC 2017"]
[Site "Riga"]
[Date "2017.04.14"]
[Round "4"]
[White "Exler, Veronika"]
[Black "Gundogan, Sinem Cagla"]
[Result "0-1"]
[ECO "D11"]
[WhiteElo "2208"]
[BlackElo "1885"]
[Annotator "NA"]
[PlyCount "70"]
[EventDate "2017.??.??"]
[EventType "swiss"]
[EventCountry "LAT"]
[SourceTitle "playchess.com"]
[Source "ChessBase"]
[SourceQuality "1"]
[TimeControl "40/5400+30:1800+30"]

1. d4 {[%emt 0:00:00]} d5 {[%emt 0:00:05]} 2. c4 {[%emt 0:00:00]} c6 {[%emt 0:00:03]} 3. Nf3 {[%emt 0:00:00]} e6 {[%emt 0:00:05]} 4. Qb3 {[%emt 0:01:18]} f5 {[%emt 0:00:39]} 5. g3 {[%emt 0:03:37]} Nf6 {[%emt 0:00:11]} 6. Bg2 {[%emt 0:00:06]} Bd6 {[%emt 0:00:14]} 7. O-O {[%emt 0:00:44]} O-O {[%emt 0:00:10]} 8. Bf4 {[%emt 0:02:52]} Bxf4 {[%emt 0:01:47]} 9. gxf4 {[%emt 0:00:04]} Ne4 {[%emt 0:00:14]} 10. Nbd2 {[%emt 0:21:31]} Kh8 {[%emt 0:08:07]} 11. Rad1 {[%emt 0:03:19]} Nd7 {[%emt 0:10:25]} 12. Ne5 {[%emt 0:16:47]} Nxe5 {[%emt 0:02:45]} 13. dxe5 {[%emt 0:00:02]} Qh4 {[%emt 0:02:05]} 14. e3 {[%emt 0:04:30]} b6 {[%emt 0:04:15]} 15. Nf3 {[%emt 0:04:29]} Qh6 {[%emt 0:01:41]} 16. Qa3 {[%emt 0:02:05]} Bb7 {[%emt 0:03:03]} 17. Nd4 {[%emt 0:23:34]} Rfe8 {[%emt 0:21:58]} 18. cxd5 {[%emt 0:03:25]} cxd5 {[%emt 0:02:14]} 19. Nb5 {[%emt 0:02:21]} g5 {[%emt 0:01:00]} 20. f3 {[%emt 0:05:38]} gxf4 {[%emt 0:06:21]} 21. exf4 {[%emt 0:00:01]} Nc5 {[%emt 0:01:10]} 22. b4 {[%emt 0:00:05]} Ba6 {[%emt 0:11:14]} 23. Nd6 {[%emt 0:01:14]} Re7 {[%emt 0:00:20]} 24. Rf2 {[%emt 0:01:13]} Nd3 {[%emt 0:01:40]} 25. Rxd3 {[%emt 0:02:00]} Bxd3 {[%emt 0:00:06]} 26. Qxd3 {[%emt 0:00:03]} Qxf4 {[%emt 0:00:09]} 27. Qc3 {[%emt 0:00:44]} d4 {[%emt 0:01:41]} 28. Qc6 {[%emt 0:00:43]} Rg8 {[%emt 0:00:16]} 29. Nc4 {[%emt 0:01:23]} Qc1+ {[%emt 0:01:16]} 30. Rf1 {[%emt 0:00:13]} Qc2 {[%emt 0:00:38]} 31. Rf2 {[%emt 0:00:22]} Qd1+ {[%emt 0:00:29]} 32. Rf1 {[%emt 0:00:11]} Qe2 {[%emt 0:00:16]} 33. Rf2 {[%emt 0:00:28]} Qe1+ {[%emt 0:00:46]} 34. Rf1 {[%emt 0:00:01]} Rxg2+ {[%emt 0:00:12]} 35. Kxg2 {[%emt 0:00:17]} Rg7+ {[%emt 0:00:06]} 0-1

[Event "EIWCC 2017"]
[Site "Riga"]
[Date "2017.04.14"]
[Round "4"]
[White "Balajayeva, Khanim"]
[Black "Warakomska, Anna"]
[Result "0-1"]
[ECO "B22"]
[WhiteElo "2196"]
[BlackElo "2343"]
[Annotator "NA"]
[PlyCount "90"]
[EventDate "2017.??.??"]
[EventType "swiss"]
[EventCountry "LAT"]
[SourceTitle "playchess.com"]
[Source "ChessBase"]
[SourceQuality "1"]
[TimeControl "40/5400+30:1800+30"]

1. e4 {[%emt 0:00:00]} c5 {[%emt 0:00:14]} 2. c3 {[%emt 0:00:00]} d5 {[%emt 0:01:04]} 3. exd5 {[%emt 0:01:30]} Qxd5 {[%emt 0:00:04]} 4. d4 {[%emt 0:00:05]} Nc6 {[%emt 0:00:15]} 5. Nf3 {[%emt 0:00:26]} Bf5 {[%emt 0:00:35]} 6. Be3 {[%emt 0:04:48]} Nf6 {[%emt 0:00:32]} 7. Nbd2 {[%emt 0:03:39]} cxd4 {[%emt 0:00:29]} 8. Bc4 {[%emt 0:03:03]} dxe3 {[%emt 0:01:17]} 9. Bxd5 {[%emt 0:00:24]} exd2+ {[%emt 0:00:05]} 10. Qxd2 {[%emt 0:00:31]} O-O-O {[%emt 0:00:04]} 11. Qf4 {[%emt 0:15:33]} Rxd5 {[%emt 0:00:21]} 12. O-O {[%emt 0:00:27]} e6 {[%emt 0:00:50]} 13. Rfd1 {[%emt 0:03:52]} Bd6 {[%emt 0:01:26]} 14. Qa4 {[%emt 0:01:49]} Rd8 {[%emt 0:04:07]} 15. Rxd5 {[%emt 0:18:57]} Nxd5 {[%emt 0:00:32]} 16. Nd4 {[%emt 0:02:12]} Nb6 {[%emt 0:05:35]} 17. Qb5 {[%emt 0:00:40]} Nxd4 {[%emt 0:03:03]} 18. cxd4 {[%emt 0:00:04]} Kb8 {[%emt 0:00:43]} 19. Rd1 {[%emt 0:06:23]} Nd5 {[%emt 0:02:13]} 20. h3 {[%emt 0:04:19]} Nf4 {[%emt 0:06:21]} 21. Qb3 {[%emt 0:02:26]} Be4 {[%emt 0:05:27]} 22. f3 {[%emt 0:02:44]} Bc6 {[%emt 0:04:49]} 23. Qc2 {[%emt 0:02:17]} g6 {[%emt 0:01:41]} 24. Qf2 {[%emt 0:01:05]} g5 {[%emt 0:04:19]} 25. Qe3 {[%emt 0:04:14]} h5 {[%emt 0:05:57]} 26. Rd2 {[%emt 0:05:52]} Rg8 {[%emt 0:04:18]} 27. Rc2 {[%emt 0:01:59]} Bd5 {[%emt 0:07:51]} 28. Rf2 {[%emt 0:03:39]} Rc8 {[%emt 0:03:22]} 29. b3 {[%emt 0:01:17]} b6 {[%emt 0:00:52]} 30. Qd2 {[%emt 0:02:54]} Bb7 {[%emt 0:06:52]} 31. Rf1 {[%emt 0:02:31]} Ba6 {[%emt 0:01:01]} 32. Rd1 {[%emt 0:01:18]} Be2 {[%emt 0:04:44]} 33. Rc1 {[%emt 0:01:18]} Rxc1+ {[%emt 0:00:16]} 34. Qxc1 {[%emt 0:00:04]} Bxf3 {[%emt 0:00:24]} 35. Qb1 {[%emt 0:00:34]} Bxg2 {[%emt 0:00:50]} 36. Qh7 {[%emt 0:00:14]} Bd5 {[%emt 0:01:04]} 37. Kf1 {[%emt 0:01:34]} Bg2+ {[%emt 0:05:12]} 38. Kf2 {[%emt 0:01:17]} Bxh3 {[%emt 0:00:29]} 39. Qg8+ {[%emt 0:00:40]} Kb7 {[%emt 0:00:11]} 40. Qxg5 {[%emt 0:00:00]} f5 {[%emt 0:02:24]} 41. b4 {[%emt 0:06:22]} Bg2 {[%emt 0:03:53]} 42. Qh6 {[%emt 0:01:13]} Bd5 {[%emt 0:00:20]} 43. a4 {[%emt 0:00:31]} Nd3+ {[%emt 0:01:03]} 44. Kg1 {[%emt 0:00:33]} Nxb4 {[%emt 0:00:30]} 45. Qxh5 {[%emt 0:00:07]} f4 {[%emt 0:00:22]} 0-1

[Event "EIWCC 2017"]
[Site "Riga"]
[Date "2017.04.14"]
[Round "4"]
[White "Pavlidou, Ekaterini"]
[Black "Babiy, Olga"]
[Result "1/2-1/2"]
[ECO "A40"]
[WhiteElo "2180"]
[BlackElo "2359"]
[Annotator "NA"]
[PlyCount "100"]
[EventDate "2017.??.??"]
[EventType "swiss"]
[EventCountry "LAT"]
[SourceTitle "playchess.com"]
[Source "ChessBase"]
[SourceQuality "1"]
[TimeControl "40/5400+30:1800+30"]

1. d4 {[%emt 0:00:00]} Nf6 {[%emt 0:00:05]} 2. c4 {[%emt 0:00:00]} e6 {[%emt 0:00:04]} 3. g3 {[%emt 0:00:07]} d5 {[%emt 0:00:50]} 4. Nf3 {[%emt 0:00:13]} Bb4+ {[%emt 0:00:07]} 5. Bd2 {[%emt 0:00:36]} Bxd2+ {[%emt 0:00:06]} 6. Qxd2 {[%emt 0:01:59]} O-O {[%emt 0:00:12]} 7. Bg2 {[%emt 0:01:03]} Qe7 {[%emt 0:00:37]} 8. O-O {[%emt 0:02:21]} dxc4 {[%emt 0:01:55]} 9. Qc2 {[%emt 0:04:00]} b5 {[%emt 0:10:31]} 10. a4 {[%emt 0:02:05]} c6 {[%emt 0:07:21]} 11. Ne5 {[%emt 0:14:15]} Bb7 {[%emt 0:03:38]} 12. b3 {[%emt 0:01:46]} cxb3 {[%emt 0:06:36]} 13. Qxb3 {[%emt 0:00:22]} b4 {[%emt 0:00:26]} 14. Nd2 {[%emt 0:09:06]} Rd8 {[%emt 0:02:42]} 15. Qb2 {[%emt 0:03:38]} Nd5 {[%emt 0:04:53]} 16. Ne4 {[%emt 0:05:00]} Na6 {[%emt 0:08:43]} 17. Rfc1 {[%emt 0:02:30]} Rdc8 {[%emt 0:06:34]} 18. Nd3 {[%emt 0:04:52]} Rab8 {[%emt 0:01:31]} 19. a5 {[%emt 0:00:53]} Nac7 {[%emt 0:03:12]} 20. e3 {[%emt 0:17:08]} f6 {[%emt 0:15:27]} 21. Nec5 {[%emt 0:04:52]} Ba6 {[%emt 0:02:16]} 22. Nf4 {[%emt 0:03:59]} Bb5 {[%emt 0:01:58]} 23. e4 {[%emt 0:05:29]} Nxf4 {[%emt 0:02:33]} 24. gxf4 {[%emt 0:00:06]} Na6 {[%emt 0:00:03]} 25. Qb3 {[%emt 0:00:32]} Nxc5 {[%emt 0:01:03]} 26. Rxc5 {[%emt 0:01:01]} Qd6 {[%emt 0:00:41]} 27. f5 {[%emt 0:00:35]} Qxd4 {[%emt 0:01:07]} 28. Rac1 {[%emt 0:00:04]} Re8 {[%emt 0:04:19]} 29. fxe6 {[%emt 0:00:56]} Qd3 {[%emt 0:00:06]} 30. Qxb4 {[%emt 0:04:07]} Rxe6 {[%emt 0:02:02]} 31. e5 {[%emt 0:04:40]} Rd8 {[%emt 0:05:42]} 32. Be4 {[%emt 0:00:21]} Rd4 {[%emt 0:03:42]} 33. Bxd3 {[%emt 0:01:35]} Rxb4 {[%emt 0:00:01]} 34. Bxb5 {[%emt 0:00:40]} Rxb5 {[%emt 0:04:40]} 35. Rxc6 {[%emt 0:00:28]} Rxc6 {[%emt 0:01:02]} 36. Rxc6 {[%emt 0:00:01]} Rxa5 {[%emt 0:00:45]} 37. exf6 {[%emt 0:00:22]} g6 {[%emt 0:00:37]} 38. Rc7 {[%emt 0:00:16]} h5 {[%emt 0:00:41]} 39. Rg7+ {[%emt 0:05:46]} Kf8 {[%emt 0:00:02]} 40. Rxg6 {[%emt 0:00:00]} Kf7 {[%emt 0:00:41]} 41. Rh6 {[%emt 0:00:40]} Rg5+ {[%emt 0:02:20]} 42. Kf1 {[%emt 0:00:44]} a5 {[%emt 0:00:12]} 43. h3 {[%emt 0:04:29]} Rf5 {[%emt 0:01:36]} 44. Kg2 {[%emt 0:03:24]} a4 {[%emt 0:02:58]} 45. Rh7+ {[%emt 0:00:09]} Kxf6 {[%emt 0:00:04]} 46. Ra7 {[%emt 0:00:04]} Rf4 {[%emt 0:00:07]} 47. Kg3 {[%emt 0:00:33]} Rb4 {[%emt 0:00:13]} 48. Ra6+ {[%emt 0:01:56]} Kf5 {[%emt 0:02:06]} 49. Ra5+ {[%emt 0:00:11]} Kg6 {[%emt 0:00:08]} 50. Ra6+ {[%emt 0:00:05]} Kf5 {[%emt 0:00:04]} 1/2-1/2